fUSD/lending_fUSD_20240519
["ID","MTS","AMOUNT","RATE_DAILY","PERIOD"]
[327447398,1716078645092,-1478.1,0.00027397,2]
[327447399,1716078645102,-500.0,0.00027397,2]
[327447400,1716078645111,-1236.25,0.00027397,2]
[327447401,1716078645121,-563.24,0.00027397,2]
[327447402,1716078645131,-6353.16,0.00027397,2]
[327447403,1716078645141,-500.0,0.00027397,2]
[327447404,1716078645151,-500.0,0.00027397,2]
[327447405,1716078645161,-412.74340841,0.00027397,2]
[327447406,1716078645170,-858.51,0.00027397,2]
[327447407,1716078645181,-500.0,0.00027397,2]
[327447408,1716078645191,-500.0,0.00027397,2]
[327447409,1716078645201,-1637.74,0.00027397,2]
[327447410,1716078645211,-2093.82,0.00027397,2]
[327447411,1716078645221,-1213.21,0.00027397,2]
[327447412,1716078645231,-1033.3,0.00027397,2]
[327447413,1716078645241,-837.96,0.00027397,2]
[327447414,1716078645251,-649.63,0.00027397,2]
[327447415,1716078645260,-6393.72,0.00027397,2]
[327447416,1716078645275,-1059.23,0.00027397,2]
[327447417,1716078645285,-1055.23,0.00027397,2]
[327447418,1716078645295,-1196.2,0.00027397,2]
[327447419,1716078645305,-13606.2,0.00027397,2]
[327447420,1716078645318,-500.0,0.00027397,2]
[327447421,1716078645328,-9049.33,0.00027397,2]
[327447422,1716078645338,-892.42,0.00027397,2]
[327447423,1716078645347,-500.0,0.00027397,2]
[327447424,1716078645357,-500.0,0.00027397,2]
[327447425,1716078645367,-1312.43,0.00027397,2]
[327447426,1716078645377,-686.8,0.00027397,2]
[327447427,1716078645386,-929.49,0.00027397,2]
[327447428,1716078645396,-500.0,0.00027397,2]
[327447429,1716078645407,-500.0,0.00027397,2]
[327447430,1716078645418,-500.0,0.00027397,2]
[327447431,1716078645429,-1939.3,0.00027397,2]
[327447432,1716078645439,-743.66,0.00027397,2]
[327447433,1716078645449,-500.0,0.00027397,2]
[327447434,1716078645459,-500.0,0.00027397,2]
[327447435,1716078645470,-500.0,0.00027397,2]
[327447436,1716078645479,-2013.02,0.00027397,2]
[327447437,1716078645489,-500.0,0.00027397,2]
[327447438,1716078645498,-1030.41,0.00027397,2]
[327447439,1716078645508,-500.0,0.00027397,2]
[327447440,1716078645518,-1781.24,0.00027397,2]
[327447441,1716078645528,-500.0,0.00027397,2]
[327447442,1716078645537,-500.0,0.00027397,2]
[327447443,1716078645549,-500.0,0.00027397,2]
[327447444,1716078645559,-784.58,0.00027397,2]
[327447445,1716078645570,-1095.5,0.00027397,2]
[327447446,1716078645580,-500.0,0.00027397,2]
[327447447,1716078645589,-500.0,0.00027397,2]
[327447448,1716078645599,-675.78,0.00027397,2]
[327447449,1716078645609,-853.49,0.00027397,2]
[327447450,1716078645618,-5578.21,0.00027397,2]
[327447451,1716078645628,-500.0,0.00027397,2]
[327447452,1716078645638,-1353.59,0.00027397,2]
[327447453,1716078645648,-4213.64,0.00027397,2]
[327447454,1716078645659,-500.0,0.00027397,2]
[327447455,1716078645668,-1183.02,0.00027397,2]
[327447456,1716078645679,-500.0,0.00027397,2]
[327447457,1716078645688,-500.0,0.00027397,2]
[327447458,1716078645698,-613.16,0.00027397,2]
[327447459,1716078645707,-8319.89,0.00027397,2]
[327447460,1716078645717,-500.0,0.00027397,2]
[327447461,1716078645727,-1523.68,0.00027397,2]
[327447462,1716078645737,-11263.28,0.00027397,2]
[327447463,1716078645746,-500.0,0.00027397,2]
[327447464,1716078645756,-500.0,0.00027397,2]
[327447465,1716078645768,-687.5,0.00027397,2]
[327447466,1716078645779,-988.22,0.00027397,2]
[327447467,1716078645788,-500.0,0.00027397,2]
[327447468,1716078645864,-500.0,0.00027397,2]
[327447469,1716078645874,-2530.3,0.00027397,2]
[327447470,1716078645883,-500.0,0.00027397,2]
[327447471,1716078645893,-878.41,0.00027397,2]
[327447472,1716078645902,-11394.4,0.00027397,2]
[327447473,1716078645912,-500.0,0.00027397,2]
[327447474,1716078645921,-1672.62,0.00027397,2]
[327447475,1716078645932,-500.0,0.00027397,2]
[327447476,1716078645941,-500.0,0.00027397,2]
[327447477,1716078645951,-528.41103522,0.00027397,2]
[327447478,1716078645960,-803.29,0.00027397,2]
[327447479,1716078645969,-500.0,0.00027397,2]
[327447480,1716078645979,-500.0,0.00027397,2]
[327447481,1716078645988,-7252.78526141,0.00027397,2]
[327447482,1716078646328,-361.36473859,0.00027397,2]
[327447483,1716078646338,-1311.7,0.00027397,2]
[327447484,1716078646348,-1307.43,0.00027397,2]
[327447485,1716078646358,-500.0,0.00027397,2]
[327447486,1716078646368,-500.0,0.00027397,2]
[327447487,1716078646378,-500.0,0.00027397,2]
[327447488,1716078646387,-500.0,0.00027397,2]
[327447489,1716078646396,-1045.39,0.00027397,2]
[327447490,1716078646405,-652.54,0.00027397,2]
[327447491,1716078646414,-3075.12,0.00027397,2]
[327447492,1716078646425,-863.6,0.00027397,2]
[327447493,1716078646434,-500.0,0.00027397,2]
[327447494,1716078646443,-500.0,0.00027397,2]
[327447495,1716078646453,-500.0,0.00027397,2]
[327447496,1716078646463,-1831.66,0.00027397,2]
[327447497,1716078646472,-1329.27,0.00027397,2]
[327447498,1716078646482,-500.0,0.00027397,2]
[327447499,1716078646491,-675.65,0.00027397,2]
[327447500,1716078646501,-500.0,0.00027397,2]
[327447501,1716078646510,-500.0,0.00027397,2]
[327447502,1716078646519,-12287.87,0.00027397,2]
[327447503,1716078646529,-1113.15,0.00027397,2]
[327447504,1716078646539,-500.0,0.00027397,2]
[327447505,1716078646548,-2444.57,0.00027397,2]
[327447506,1716078646558,-2423.7,0.00027397,2]
[327447507,1716078646568,-690.97,0.00027397,2]
[327447508,1716078646577,-782.51,0.00027397,2]
[327447509,1716078646587,-500.0,0.00027397,2]
[327447510,1716078646598,-500.0,0.00027397,2]
[327447511,1716078646608,-500.0,0.00027397,2]
[327447512,1716078646617,-500.0,0.00027397,2]
[327447513,1716078646626,-2076.59,0.00027397,2]
[327447514,1716078646636,-14693.09,0.00027397,2]
[327447515,1716078646645,-500.0,0.00027397,2]
[327447516,1716078646654,-2483.23,0.00027397,2]
[327447517,1716078646663,-634.11,0.00027397,2]
[327447518,1716078646673,-1053.73,0.00027397,2]
[327447519,1716078646683,-1080.2,0.00027397,2]
[327447520,1716078646693,-500.0,0.00027397,2]
[327447521,1716078646702,-4673.28,0.00027397,2]
[327447522,1716078646712,-500.0,0.00027397,2]
[327447523,1716078646721,-500.0,0.00027397,2]
[327447524,1716078646731,-1437.6,0.00027397,2]
[327447525,1716078646740,-500.0,0.00027397,2]
[327447526,1716078646751,-1159.59,0.00027397,2]
[327447527,1716078646760,-500.0,0.00027397,2]
[327447528,1716078646772,-500.0,0.00027397,2]
[327447529,1716078646781,-500.0,0.00027397,2]
[327447530,1716078646791,-500.0,0.00027397,2]
[327447531,1716078646801,-500.0,0.00027397,2]
[327447532,1716078646811,-627.84,0.00027397,2]
[327447533,1716078646820,-880.42,0.00027397,2]
[327447534,1716078646829,-1488.28,0.00027397,2]
[327447535,1716078646838,-1630.92,0.00027397,2]
[327447536,1716078646848,-500.0,0.00027397,2]
[327447537,1716078646857,-9733.43,0.00027397,2]
[327447538,1716078646867,-500.0,0.00027397,2]
[327447539,1716078646876,-880.17,0.00027397,2]
[327447540,1716078646885,-500.0,0.00027397,2]
[327447541,1716078646895,-500.0,0.00027397,2]
[327447542,1716078646904,-1310.04359991,0.00027397,2]
[327447543,1716078646917,-339.35695311,0.00027397,2]
[327447544,1716078647187,-527.88226633,0.00027397,2]
[327447545,1716078647199,-785.54718065,0.00027397,2]
[327447546,1716078647209,-500.0,0.00027397,2]
[327447547,1716078647218,-500.0,0.00027397,2]
[327447548,1716078647227,-716.13,0.00027397,2]
[327447549,1716078647237,-768.84,0.00027397,2]
[327447550,1716078647247,-500.0,0.00027397,2]
[327447551,1716078647256,-500.0,0.00027397,2]
[327447552,1716078647268,-52.46281935,0.00027397,2]
[327447553,1716078647286,-447.53718065,0.00027397,2]
[327447554,1716078647295,-1840.17,0.00027397,2]
[327447555,1716078647305,-500.0,0.00027397,2]
[327447556,1716078647316,-986.7,0.00027397,2]
[327447557,1716078647325,-500.0,0.00027397,2]
[327447558,1716078647334,-1337.67336336,0.00027397,2]
[327447559,1716078647347,-325.05663664,0.00027397,2]
[327447560,1716078647356,-500.0,0.00027397,2]
[327447561,1716078647365,-500.0,0.00027397,2]
[327447562,1716078647374,-4303.61,0.00027397,2]
[327447563,1716078647383,-631.36,0.00027397,2]
[327447564,1716078647393,-724.28,0.00027397,2]
[327447565,1716078647402,-161.72296523,0.00027397,2]
[327447566,1716078647489,-1000.0,0.00027397,2]
[327447567,1716078647537,-1839.23703477,0.00027397,2]
[327447568,1716078647546,-500.0,0.00027397,2]
[327447569,1716078647556,-500.0,0.00027397,2]
[327447570,1716078647565,-613.97,0.00027397,2]
[327447571,1716078647574,-504.46,0.00027397,2]
[327447572,1716078647583,-525.96,0.00027397,2]
[327447573,1716078647592,-500.0,0.00027397,2]
[327447574,1716078647602,-500.0,0.00027397,2]
[327447575,1716078647611,-3050.31,0.00027397,2]
[327447576,1716078647621,-305.69589642,0.00027397,2]
[327447577,1716078647637,-2206.8,0.00027397,2]
[327447578,1716078647647,-3296.43,0.00027397,2]
[327447579,1716078647657,-3601.59,0.00027397,2]
[327447580,1716078647667,-3041.56,0.00027397,2]
[327447581,1716078647678,-523.16,0.00027397,2]
[327447582,1716078647687,-2275.09,0.00027397,2]
[327447583,1716078647698,-500.0,0.00027397,2]
[327447584,1716078647709,-750.61,0.00027397,2]
[327447585,1716078647720,-500.0,0.00027397,2]
[327447586,1716078647730,-3685.01,0.00027397,2]
[327447587,1716078647739,-1919.05,0.00027397,2]
[327447588,1716078647749,-1219.88,0.00027397,2]
[327447589,1716078647760,-636.76,0.00027397,2]
[327447590,1716078647770,-1988.81,0.00027397,2]
[327447591,1716078647780,-606.7,0.00027397,2]
[327447592,1716078647790,-500.0,0.00027397,2]
[327447593,1716078647800,-1878.81,0.00027397,2]
[327447594,1716078647811,-2176.0,0.00027397,2]
[327447595,1716078647821,-2585.42,0.00027397,2]
[327447596,1716078647831,-570.78,0.00027397,2]
[327447597,1716078647842,-3682.41,0.00027397,2]
[327447598,1716078647854,-500.0,0.00027397,2]
[327447599,1716078647864,-738.69,0.00027397,2]
[327447600,1716078647874,-1679.77,0.00027397,2]
[327447601,1716078647884,-500.0,0.00027397,2]
[327447602,1716078647895,-500.0,0.00027397,2]
[327447603,1716078647906,-500.0,0.00027397,2]
[327447604,1716078647916,-2986.43,0.00027397,2]
[327447605,1716078647927,-4242.79,0.00027397,2]
[327447606,1716078647937,-500.0,0.00027397,2]
[327447607,1716078647946,-3057.4,0.00027397,2]
[327447608,1716078647956,-1055.1,0.00027397,2]
[327447609,1716078647966,-232.08354648,0.00027397,2]
[327447610,1716078647977,-500.0,0.00027397,2]
[327447611,1716078647987,-500.0,0.00027397,2]
[327447612,1716078647997,-231.24522514,0.00027397,2]
[327447613,1716078648007,-500.0,0.00027397,2]
[327447614,1716078648018,-500.0,0.00027397,2]
[327447615,1716078648028,-5880.85,0.00027397,2]
[327447616,1716078648039,-500.0,0.00027397,2]
[327447617,1716078648049,-1361.72,0.00027397,2]
[327447618,1716078648059,-2275.09,0.00027397,2]
[327447619,1716078648070,-567.25,0.00027397,2]
[327447620,1716078648080,-2444.03,0.00027397,2]
[327447621,1716078648090,-1546.63,0.00027397,2]
[327447622,1716078648100,-2234.1,0.00027397,2]
[327447623,1716078648110,-500.0,0.00027397,2]
[327447624,1716078648120,-500.0,0.00027397,2]
[327447625,1716078648130,-629.55,0.00027397,2]
[327447626,1716078648140,-500.0,0.00027397,2]
[327447627,1716078648150,-500.0,0.00027397,2]
[327447628,1716078648160,-500.0,0.00027397,2]
[327447629,1716078648170,-500.0,0.00027397,2]
[327447630,1716078648181,-500.0,0.00027397,2]
[327447631,1716078648191,-500.0,0.00027397,2]
[327447632,1716078648202,-631.01,0.00027397,2]
[327447633,1716078648212,-500.0,0.00027397,2]
[327447634,1716078648222,-1214.83,0.00027397,2]
[327447635,1716078648232,-500.0,0.00027397,2]
[327447636,1716078648242,-751.01,0.00027397,2]
[327447637,1716078648252,-1907.53,0.00027397,2]
[327447638,1716078648262,-2098.31,0.00027397,2]
[327447639,1716078648276,-500.0,0.00027397,2]
[327447640,1716078648285,-823.01,0.00027397,2]
[327447641,1716078648295,-1155.69,0.00027397,2]
[327447642,1716078648305,-500.0,0.00027397,2]
[327447643,1716078648315,-500.0,0.00027397,2]
[327447644,1716078648325,-500.0,0.00027397,2]
[327447645,1716078648334,-500.0,0.00027397,2]
[327447646,1716078648344,-500.0,0.00027397,2]
[327447647,1716078648354,-500.0,0.00027397,2]
[327447648,1716078648365,-598.87,0.00027397,2]
[327447649,1716078648376,-553.76,0.00027397,2]
[327447650,1716078648386,-500.0,0.00027397,2]
[327447651,1716078648396,-500.0,0.00027397,2]
[327447652,1716078648406,-513.61,0.00027397,2]
[327447653,1716078648415,-2141.74,0.00027397,2]
[327447654,1716078648425,-500.0,0.00027397,2]
[327447655,1716078648437,-500.0,0.00027397,2]
[327447656,1716078648447,-500.0,0.00027397,2]
[327447657,1716078648457,-916.74,0.00027397,2]
[327447658,1716078648467,-500.0,0.00027397,2]
[327447659,1716078648477,-971.82,0.00027397,2]
[327447660,1716078648487,-2760.5,0.00027397,2]
[327447661,1716078648497,-1119.54,0.00027397,2]
[327447662,1716078648507,-500.0,0.00027397,2]
[327447663,1716078648517,-500.0,0.00027397,2]
[327447664,1716078648527,-500.0,0.00027397,2]
[327447665,1716078648537,-500.0,0.00027397,2]
[327447666,1716078648547,-2356.22,0.00027397,2]
[327447667,1716078648557,-500.0,0.00027397,2]
[327447668,1716078648567,-500.0,0.00027397,2]
[327447669,1716078648576,-500.0,0.00027397,2]
[327447670,1716078648586,-4000.0,0.00027397,2]
[327447671,1716078648596,-163.24,0.000274,2]
[327447672,1716078648606,-919.58,0.00027412,2]
[327447673,1716078648616,-157.051907,0.00027448,8]
[327447674,1716078648626,-504.2,0.00027557,7]
[327447675,1716078648636,-500.0,0.00027566,2]
[327447676,1716078648646,-137440.0562,0.00027567,2]
[327447677,1716078648656,-185.80232796,0.00027571,2]
[327447678,1716078648666,-5342.53652507,0.00027571,2]
[327447679,1716078648676,-793532.95323165,0.00027667,4]
[327447680,1716078648688,-1108.8358232,0.00027669,2]
[327447681,1716078648698,-3024.88433628,0.00027669,2]
[327447682,1716078648708,-155.07331885,0.00027669,2]
[327447683,1716078648718,-155.57300848,0.00027669,2]
[327447684,1716078648727,-263.54082347,0.00027669,2]
[327447685,1716078648737,-274.26657988,0.00027669,2]
[327447686,1716078648746,-202.82650177,0.00027669,2]
[327447687,1716078648756,-155.0,0.00027669,2]
[327447688,1716078648766,-156.37954986,0.00027669,2]
[327447689,1716078648776,-155.27839442,0.00027669,2]
[327447690,1716078648786,-164.14462552,0.00027669,2]
[327447691,1716078648796,-250.10468562,0.00027669,2]
[327447692,1716078648806,-246.65442859,0.00027669,2]
[327447693,1716078648816,-208.17791052,0.00027669,2]
[327447694,1716078648825,-241.01013371,0.0002767,2]
[327447695,1716078648835,-377.89293188,0.0002767,2]
[327447696,1716078648845,-500.0,0.0002767,2]
[327447697,1716078648855,-500.0,0.0002767,2]
[327447698,1716078648865,-500.0,0.0002767,2]
[327447699,1716078648874,-512.16459503,0.00027671,2]
[327447700,1716078648884,-681.95,0.00027671,2]
[327447701,1716078648894,-500.0,0.00027671,2]
[327447702,1716078648904,-500.0,0.00027671,2]
[327447703,1716078648914,-500.0,0.00027671,2]
[327447704,1716078648923,-500.0,0.00027671,2]
[327447705,1716078648936,-500.0,0.00027671,2]
[327447706,1716078648945,-500.0,0.00027671,2]
[327447707,1716078648955,-500.0,0.00027671,2]
[327447708,1716078648966,-478.16660179,0.00027671,2]
[327447709,1716078648976,-500.0,0.00027671,2]
[327447710,1716078648986,-500.0,0.00027671,2]
[327447711,1716078648996,-500.0,0.00027671,2]
[327447712,1716078649005,-500.0,0.00027671,2]
[327447713,1716078649015,-500.0,0.00027671,2]
[327447714,1716078649025,-500.0,0.00027671,2]
[327447715,1716078649036,-500.0,0.00027671,2]
[327447716,1716078649045,-150.0,0.00027671,2]
[327447717,1716078649055,-500.0,0.00027671,2]
[327447718,1716078649065,-500.0,0.00027671,2]
[327447719,1716078649075,-500.0,0.00027671,2]
[327447720,1716078649085,-500.0,0.00027671,2]
[327447721,1716078649095,-500.0,0.00027671,2]
[327447722,1716078649104,-500.0,0.00027671,2]
[327447723,1716078649114,-500.0,0.00027671,2]
[327447724,1716078649124,-500.0,0.00027671,2]
[327447725,1716078649133,-500.0,0.00027671,2]
[327447726,1716078649143,-500.0,0.00027671,2]
[327447727,1716078649152,-500.0,0.00027671,2]
[327447728,1716078649162,-500.0,0.00027671,2]
[327447729,1716078649172,-500.0,0.00027671,2]
[327447730,1716078649182,-500.0,0.00027671,2]
[327447731,1716078649193,-500.0,0.00027671,2]
[327447732,1716078649203,-500.0,0.00027671,2]
[327447733,1716078649213,-500.0,0.00027671,2]
[327447734,1716078649223,-378.31,0.00027671,2]
[327447735,1716078649233,-431.3495481,0.00027671,2]
[327447736,1716078649244,-505.93,0.00027671,2]
[327447737,1716078649254,-517.25,0.00027671,2]
[327447738,1716078649264,-342.01,0.00027671,2]
[327447739,1716078649282,-500.0,0.00027671,2]
[327447740,1716078649293,-500.0,0.00027671,2]
[327447741,1716078649304,-500.0,0.00027671,2]
[327447742,1716078649316,-500.0,0.00027671,2]
[327447743,1716078649327,-500.0,0.00027671,2]
[327447744,1716078649336,-500.0,0.00027671,2]
[327447745,1716078649346,-500.0,0.00027671,2]
[327447746,1716078649358,-500.0,0.00027671,2]
[327447747,1716078649370,-500.0,0.00027671,2]
[327447748,1716078649380,-500.0,0.00027671,2]
[327447749,1716078649390,-259.29525883,0.00027671,2]
[327447750,1716078649400,-458.6045774,0.00027671,2]
[327447751,1716078649410,-500.0,0.00027671,2]
[327447752,1716078649420,-500.0,0.00027671,2]
[327447753,1716078649430,-500.0,0.00027671,2]
[327447754,1716078649439,-500.0,0.00027671,2]
[327447755,1716078649449,-500.0,0.00027671,2]
[327447756,1716078649458,-500.0,0.00027671,2]
[327447757,1716078649468,-500.0,0.00027671,2]
[327447758,1716078649478,-500.0,0.00027671,2]
[327447759,1716078649488,-205.0,0.00027671,2]
[327447760,1716078649497,-504.84358767,0.00027671,2]
[327447761,1716078649507,-585.043966,0.00027671,2]
[327447762,1716078649517,-500.0,0.00027671,2]
[327447763,1716078649527,-500.0,0.00027671,2]
[327447764,1716078649536,-500.0,0.00027671,2]
[327447765,1716078649546,-434.2,0.00027671,2]
[327447766,1716078649555,-500.0,0.00027671,2]
[327447767,1716078649565,-500.0,0.00027671,2]
[327447768,1716078649574,-500.0,0.00027671,2]
[327447769,1716078649583,-500.0,0.00027671,2]
[327447770,1716078649593,-500.0,0.00027671,2]
[327447771,1716078649602,-500.0,0.00027671,2]
[327447772,1716078649612,-500.0,0.00027671,2]
[327447773,1716078649622,-500.0,0.00027671,2]
[327447774,1716078649632,-500.0,0.00027671,2]
[327447775,1716078649642,-500.0,0.00027671,2]
[327447776,1716078649651,-500.0,0.00027671,2]
[327447777,1716078649661,-500.0,0.00027671,2]
[327447778,1716078649670,-500.0,0.00027671,2]
[327447779,1716078649681,-500.0,0.00027671,2]
[327447780,1716078649690,-733.98,0.00027671,2]
[327447781,1716078649699,-500.0,0.00027671,2]
[327447782,1716078649709,-500.0,0.00027671,2]
[327447783,1716078649718,-500.0,0.00027671,2]
[327447784,1716078649728,-500.0,0.00027671,2]
[327447785,1716078649738,-644.82139074,0.00027671,2]
[327447786,1716078649748,-500.0,0.00027671,2]
[327447787,1716078649758,-500.0,0.00027671,2]
[327447788,1716078649767,-500.0,0.00027671,2]
[327447789,1716078649777,-500.0,0.00027671,2]
[327447790,1716078649787,-500.0,0.00027671,2]
[327447791,1716078649797,-500.0,0.00027671,2]
[327447792,1716078649808,-722.95,0.00027671,2]
[327447793,1716078650044,-500.0,0.00027671,2]
[327447794,1716078650055,-1030.53,0.00027671,2]
[327447795,1716078650064,-500.0,0.00027671,2]
[327447796,1716078650073,-502.13,0.00027671,2]
[327447797,1716078650083,-500.0,0.00027671,2]
[327447798,1716078650092,-500.0,0.00027671,2]
[327447799,1716078650101,-500.0,0.00027671,2]
[327447800,1716078650110,-500.0,0.00027671,2]
[327447801,1716078650119,-500.0,0.00027671,2]
[327447802,1716078650127,-500.0,0.00027671,2]
[327447803,1716078650136,-500.0,0.00027671,2]
[327447804,1716078650145,-583.65,0.00027671,2]
[327447805,1716078650154,-1044.26,0.00027671,2]
[327447806,1716078650163,-648.82,0.00027671,2]
[327447807,1716078650172,-574.36,0.00027671,2]
[327447808,1716078650183,-537.0,0.00027671,2]
[327447809,1716078650192,-500.0,0.00027671,2]
[327447810,1716078650202,-500.0,0.00027671,2]
[327447811,1716078650211,-500.0,0.00027671,2]
[327447812,1716078650220,-202.7829884,0.00027671,2]
[327447813,1716078650229,-500.0,0.00027671,2]
[327447814,1716078650238,-500.0,0.00027671,2]
[327447815,1716078650247,-525.22,0.00027671,2]
[327447816,1716078650256,-505.89,0.00027671,2]
[327447817,1716078650265,-500.0,0.00027671,2]
[327447818,1716078650280,-408.89726343,0.00027671,2]
[327447819,1716078650289,-500.0,0.00027671,2]
[327447820,1716078650298,-737.65,0.00027671,2]
[327447821,1716078650306,-500.0,0.00027671,2]
[327447822,1716078650315,-500.0,0.00027671,2]
[327447823,1716078650324,-500.0,0.00027671,2]
[327447824,1716078650332,-500.0,0.00027671,2]
[327447825,1716078650341,-500.0,0.00027671,2]
[327447826,1716078650350,-500.0,0.00027671,2]
[327447827,1716078650359,-500.0,0.00027671,2]
[327447828,1716078650367,-500.0,0.00027671,2]
[327447829,1716078650377,-500.0,0.00027671,2]
[327447830,1716078650385,-500.0,0.00027671,2]
[327447831,1716078650394,-500.0,0.00027671,2]
[327447832,1716078650411,-577.98,0.00027671,2]
[327447833,1716078650423,-500.0,0.00027671,2]
[327447834,1716078650434,-500.0,0.00027671,2]
[327447835,1716078650443,-500.0,0.00027671,2]
[327447836,1716078650452,-531.85,0.00027671,2]
[327447837,1716078650462,-500.0,0.00027671,2]
[327447838,1716078650471,-500.0,0.00027671,2]
[327447839,1716078650481,-500.0,0.00027671,2]
[327447840,1716078650491,-500.0,0.00027671,2]
[327447841,1716078650500,-500.0,0.00027671,2]
[327447842,1716078650509,-630.47,0.00027671,2]
[327447843,1716078650519,-921.62,0.00027671,2]
[327447844,1716078650528,-598.64,0.00027671,2]
[327447845,1716078650538,-597.35,0.00027671,2]
[327447846,1716078650548,-500.0,0.00027671,2]
[327447847,1716078650557,-678.99,0.00027671,2]
[327447848,1716078650567,-500.0,0.00027671,2]
[327447849,1716078650576,-500.0,0.00027671,2]
[327447850,1716078650586,-1138.39,0.00027671,2]
[327447851,1716078650595,-596.25,0.00027671,2]
[327447852,1716078650605,-500.0,0.00027671,2]
[327447853,1716078650614,-500.0,0.00027671,2]
[327447854,1716078650624,-500.0,0.00027671,2]
[327447855,1716078650633,-500.0,0.00027671,2]
[327447856,1716078650642,-500.0,0.00027671,2]
[327447857,1716078650652,-827.83,0.00027671,2]
[327447858,1716078650662,-500.0,0.00027671,2]
[327447859,1716078650671,-509.41554983,0.00027671,2]
[327447860,1716078650682,-500.0,0.00027671,2]
[327447861,1716078650692,-1011.91,0.00027671,2]
[327447862,1716078650702,-890.31,0.00027671,2]
[327447863,1716078650711,-500.0,0.00027671,2]
[327447864,1716078650721,-500.0,0.00027671,2]
[327447865,1716078650730,-500.0,0.00027671,2]
[327447866,1716078650740,-655.15,0.00027671,2]
[327447867,1716078650749,-500.0,0.00027671,2]
[327447868,1716078650759,-500.0,0.00027671,2]
[327447869,1716078650768,-672.45,0.00027671,2]
[327447870,1716078650777,-500.0,0.00027671,2]
[327447871,1716078650787,-500.0,0.00027671,2]
[327447872,1716078650796,-500.0,0.00027671,2]
[327447873,1716078650805,-500.0,0.00027671,2]
[327447874,1716078650815,-500.0,0.00027671,2]
[327447875,1716078650824,-500.0,0.00027671,2]
[327447876,1716078650833,-504.05,0.00027671,2]
[327447877,1716078650842,-689.56,0.00027671,2]
[327447878,1716078650851,-500.0,0.00027671,2]
[327447879,1716078650860,-500.0,0.00027671,2]
[327447880,1716078650870,-611.06,0.00027671,2]
[327447881,1716078650879,-500.0,0.00027671,2]
[327447882,1716078650889,-500.0,0.00027671,2]
[327447883,1716078650898,-633.75,0.00027671,2]
[327447884,1716078650908,-500.0,0.00027671,2]
[327447885,1716078650918,-500.0,0.00027671,2]
[327447886,1716078650929,-900.3,0.00027671,2]
[327447887,1716078650939,-500.0,0.00027671,2]
[327447888,1716078650948,-500.0,0.00027671,2]
[327447889,1716078650958,-500.0,0.00027671,2]
[327447890,1716078650967,-523.89,0.00027671,2]
[327447891,1716078650977,-534.55,0.00027671,2]
[327447892,1716078650986,-569.19,0.00027671,2]
[327447893,1716078650996,-500.0,0.00027671,2]
[327447894,1716078651005,-500.0,0.00027671,2]
[327447895,1716078651015,-500.0,0.00027671,2]
[327447896,1716078651025,-500.0,0.00027671,2]
[327447897,1716078651035,-500.0,0.00027671,2]